fUST/lending_fUST_20240525
["ID","MTS","AMOUNT","RATE_DAILY","PERIOD"]
[327903408,1716599438060,-183.23734253,8.541e-05,2]
[327903410,1716599438069,-281.75410999,8.542e-05,2]
[327903412,1716599438078,-136.90149866,8.542e-05,2]
[327903461,1716599441450,-2000.0,8.538e-05,2]
[327903463,1716599443079,-606.77649012,8.538e-05,2]
[327903495,1716600437149,-1618.14979407,7.472e-05,2]
[327903509,1716600572101,-3064.3909481,7.46e-05,2]
[327903510,1716600572125,-733.4773594,7.461e-05,2]
[327903511,1716600572147,-2599.40071805,7.462e-05,2]
[327903512,1716600572170,-1869.77973806,7.462e-05,2]
[327903513,1716600572194,-11064.75247274,7.463e-05,2]
[327903514,1716600572217,-7899.73937105,7.464e-05,2]
[327903515,1716600572240,-9566.24990796,7.464e-05,2]
[327903516,1716600572261,-160.27099543,7.464e-05,2]
[327903517,1716600572285,-285.2556899,7.465e-05,2]
[327903518,1716600572307,-68095.5551988,7.465e-05,2]
[327903519,1716600572330,-55542.95115617,7.466e-05,2]
[327903546,1716600632465,-1086.3237768,7.397e-05,2]
[327903552,1716600632484,-2028.89952765,7.397e-05,2]
[327903556,1716600632498,-21784.77669555,7.397e-05,2]
[327903560,1716600632510,-835.39687753,7.467e-05,2]
[327903564,1716600632522,-3139.92061569,7.467e-05,2]
[327903567,1716600632534,-155.10487286,7.523e-05,2]
[327903570,1716600632545,-8108.35381207,7.524e-05,2]
[327903573,1716600632556,-1244.87240437,7.524e-05,2]
[327903909,1716600642072,-155.02288236,7.523e-05,2]
[327903910,1716600642081,-94.97014164,7.524e-05,2]
[327905625,1716600660458,-2599.89847911,7.523e-05,2]
[327905628,1716600660480,-59448.58262667,7.523e-05,2]
[327905632,1716600660502,-249.88392833,7.524e-05,2]
[327905635,1716600660524,-547.0464565,7.524e-05,2]
[327905638,1716600660547,-16422.38850939,7.524e-05,2]
[327908127,1716600696657,652.22,0.000291,91]
[327908128,1716600800855,-154.8915759,7.439e-05,2]
[327908129,1716600800877,-281.80268381,7.44e-05,2]
[327908130,1716600800898,-316.61744386,7.44e-05,2]
[327908131,1716600800918,-46268.58829643,7.44e-05,2]
[327908132,1716600801634,326.0,0.000291,120]
[327908133,1716600804389,7129.0,0.00027,30]
[327908134,1716600816046,623.5232752,0.0002,10]
[327908138,1716601186278,250.0,5.405e-05,2]
[327908139,1716601294828,3375.61311874,5.405e-05,2]
[327908140,1716601310827,2920.48130649,5.405e-05,2]
[327908143,1716601416996,204.87,0.00028,120]
[327908145,1716601484385,-2599.89847911,6.36e-05,2]
[327908146,1716601484409,-1340.12846768,6.36e-05,2]
[327908147,1716601484436,-7901.15071561,6.361e-05,2]
[327908148,1716601484461,-158.67086264,6.361e-05,2]
[327908149,1716601484483,-514.10105523,6.362e-05,2]
[327908150,1716601484510,-1899.42263675,6.362e-05,2]
[327908151,1716601484532,-1895.27931477,6.362e-05,2]
[327908152,1716601484554,-2636.83525359,6.362e-05,2]
[327908153,1716601484575,-10518.35727372,6.362e-05,2]
[327908154,1716601484598,-1979.22122047,6.363e-05,2]
[327908155,1716601484620,-316.61744386,6.364e-05,2]
[327908156,1716601484642,-1152.36513841,6.364e-05,2]
[327908157,1716601484665,-154.8915759,6.365e-05,2]
[327908158,1716601484691,-2681.27163775,6.365e-05,2]
[327908159,1716601484713,-1870.13098848,6.365e-05,2]
[327908160,1716601484737,-231.02960299,6.366e-05,2]
[327908161,1716601484764,-3065.00544058,6.366e-05,2]
[327908162,1716601484790,-59448.58262667,6.366e-05,2]
[327908163,1716601484812,-690.85461678,6.367e-05,2]
[327908164,1716601484835,-488.24995546,6.367e-05,2]
[327908165,1716601484858,-371.54299666,6.367e-05,2]
[327908166,1716601484879,-488.24995546,6.367e-05,2]
[327908167,1716601484901,-9567.99465674,6.367e-05,2]
[327908168,1716601484924,-68108.02998407,6.369e-05,2]
[327908169,1716601484947,-2701.98420263,6.385e-05,2]
[327908170,1716601484970,-160.71232806,6.393e-05,2]
[327908171,1716601484991,-155.2855263,6.398e-05,2]
[327908172,1716601485013,-18653.9781083,6.406e-05,2]
[327908173,1716601485036,-24900.0,7.397e-05,2]
[327908174,1716601485058,-42004.14583686,7.413e-05,2]
[327908175,1716601485080,-11067.33093083,7.415e-05,2]
[327908176,1716601485103,-916.83852641,7.42e-05,2]
[327908177,1716601485125,-156.60501741,7.423e-05,2]
[327908178,1716601485149,-155.22708761,7.437e-05,2]
[327908179,1716601485172,-723.00276744,7.437e-05,2]
[327908180,1716601485194,-155.3419869,7.437e-05,2]
[327908181,1716601485216,-735.12384181,7.437e-05,2]
[327908182,1716601485238,-155.15625558,7.437e-05,2]
[327908183,1716601485263,-182.22065078,7.437e-05,2]
[327908184,1716601485284,-372.62022466,7.439e-05,2]
[327908185,1716601485306,-688.24821028,7.441e-05,2]
[327908186,1716601485328,-963.03550999,7.444e-05,2]
[327908187,1716601485350,-329.31108943,7.516e-05,2]
[327908188,1716601485373,-154.8915759,7.517e-05,2]
[327908189,1716601485395,-524.89442063,7.517e-05,2]
[327908190,1716601485420,-155.2247256,7.519e-05,2]
[327908191,1716601485442,-412.262706,7.519e-05,2]
[327908192,1716601485463,-155.26216855,7.519e-05,2]
[327908193,1716601485485,-155.15271826,7.519e-05,2]
[327908194,1716601485508,-155.08391953,7.519e-05,2]
[327908195,1716601485530,-155.11613716,7.519e-05,2]
[327908196,1716601485551,-155.14127322,7.519e-05,2]
[327908197,1716601485572,-283.83941823,7.525e-05,2]
[327908198,1716601485595,-2701.98420261,8.214e-05,2]
[327908199,1716601485616,-163.01658444,8.533e-05,2]
[327908200,1716601485638,-154.8915759,8.537e-05,2]
[327908201,1716601485660,-703.12773459,8.541e-05,2]
[327908202,1716601485682,-204.40270621,8.552e-05,2]
[327908203,1716601485704,-184.60069001,8.552e-05,2]
[327908204,1716601485727,-455.7724915,8.552e-05,2]
[327908205,1716601485750,-245.92298999,8.552e-05,2]
[327908206,1716601485771,-685.11026498,8.552e-05,2]
[327908207,1716601485792,-700.73310105,8.553e-05,2]
[327908208,1716601485813,-154.8915759,8.566e-05,2]
[327908209,1716601485835,-194.9200639,9.716e-05,2]
[327908210,1716601485856,-1803.99604655,9.716e-05,2]
[327908211,1716601485879,-2701.98420261,9.942e-05,2]
[327908212,1716601485900,-15000.0,0.0001,2]
[327908213,1716601485922,-9405.35671463,0.0001,2]
[327908214,1716601485944,-155.00305574,0.0001,2]
[327908215,1716601485967,-417.64867022,0.00010821,2]
[327908216,1716601485993,-4227.33365889,0.00010895,2]
[327908217,1716601486016,-157.27,0.00010959,2]
[327908218,1716601486038,-1539.612901,0.00010959,2]
[327908219,1716601486062,-1539.612901,0.00010959,2]
[327908220,1716601486084,-1175.73,0.00010959,2]
[327908221,1716601486109,-1180.03,0.00010959,2]
[327908222,1716601486130,-983.36,0.00010959,2]
[327908223,1716601486152,-1063.107886,0.00010959,2]
[327908224,1716601486173,-1063.107886,0.00010959,2]
[327908225,1716601486196,-819.46,0.00010959,2]
[327908226,1716601486218,-1063.107886,0.00010959,2]
[327908227,1716601486241,-1063.107886,0.00010959,2]
[327908228,1716601486265,-682.89,0.00010959,2]
[327908229,1716601486287,-569.07,0.00010959,2]
[327908230,1716601486422,-3632.73611165,0.00010959,2]
[327908231,1716601486449,-1539.612901,0.00010959,2]
[327908232,1716601486473,-1539.612901,0.00010959,2]
[327908233,1716601486498,-1063.107886,0.0001177,2]
[327908234,1716601486520,-1063.107886,0.0001177,2]
[327908235,1716601486542,-2701.98420261,0.00011771,2]
[327908236,1716601486564,-151.0,0.00013017,2]
[327908237,1716601486589,-2701.98420261,0.00013599,2]
[327908238,1716601486612,-156.16720216,0.00013684,2]
[327908239,1716601486635,-207.73682713,0.00013684,2]
[327908240,1716601486657,-264.44588343,0.00013687,2]
[327908241,1716601486680,-378.52430906,0.00013687,2]
[327908242,1716601486703,-1728.55395962,0.00013687,2]
[327908243,1716601486723,-631.13051759,0.00013687,2]
[327908244,1716601486746,-200.28999539,0.00013687,2]
[327908245,1716601486767,-163.99966982,0.00013687,2]
[327908246,1716601486787,-164.03024625,0.0001369,2]
[327908247,1716601486808,-303.17653568,0.0001369,2]
[327908248,1716601486829,-239.20360219,0.0001369,2]
[327908249,1716601486850,-309.72126324,0.0001369,2]
[327908250,1716601486871,-282.98810533,0.00013691,2]
[327908251,1716601486893,-1586.75851041,0.00013691,2]
[327908252,1716601486915,-10436.91051711,0.00013691,2]
[327908253,1716601486938,-1539.612901,0.00013691,2]
[327908254,1716601486960,-1539.612901,0.00013691,2]
[327908255,1716601486983,-1063.107886,0.00013691,2]
[327908256,1716601487005,-1063.107886,0.00013691,2]
[327908257,1716601487027,-151.0,0.00013699,2]
[327908258,1716601487051,-151.0,0.00013699,2]
[327908259,1716601487072,-152.290548,0.00013699,2]
[327908260,1716601487095,-151.0,0.00013699,2]
[327908261,1716601487118,-151.198502,0.00013699,2]
[327908262,1716601487141,-151.0,0.00013699,2]
[327908263,1716601487163,-151.0,0.00013699,2]
[327908264,1716601487184,-151.0,0.00013699,2]
[327908265,1716601487206,-153.919836,0.00013699,2]
[327908266,1716601487228,-153.919836,0.00013699,2]
[327908267,1716601487251,-151.0,0.00013699,2]
[327908268,1716601487273,-151.0,0.00013699,2]
[327908269,1716601487297,-151.0,0.00013699,2]
[327908270,1716601487322,-151.0,0.00013699,2]
[327908271,1716601487347,-151.0,0.00013699,2]
[327908272,1716601487370,-151.0,0.00013699,2]
[327908273,1716601487393,-151.286191,0.00013699,2]
[327908274,1716601487418,-151.0,0.00013699,2]
[327908275,1716601487440,-151.0,0.00013699,2]
[327908276,1716601487463,-151.0,0.00013699,2]
[327908277,1716601487485,-151.0,0.00013699,2]
[327908278,1716601487512,-152.241288,0.00013699,2]
[327908279,1716601487535,-151.0,0.00013699,2]
[327908280,1716601487558,-151.0,0.00013699,2]
[327908281,1716601487581,-151.0,0.00013699,2]
[327908282,1716601487605,-151.0,0.00013699,2]
[327908283,1716601487627,-151.0,0.00013699,2]
[327908284,1716601487650,-151.0,0.00013699,2]
[327908285,1716601487672,-151.0,0.00013699,2]
[327908286,1716601487698,-151.0,0.00013699,2]
[327908287,1716601487720,-151.0,0.00013699,2]
[327908288,1716601487742,-3000.0,0.00013699,2]
[327908289,1716601487764,-151.0,0.00013699,2]
[327908290,1716601487786,-151.0,0.00013699,2]
[327908291,1716601487808,-151.0,0.00013699,2]
[327908292,1716601487830,-287.107218,0.00013699,2]
[327908293,1716601487853,-473.61833,0.00013699,2]
[327908294,1716601487876,-473.61833,0.00013699,2]
[327908295,1716601487898,-473.61833,0.00013699,2]
[327908296,1716601487922,-473.61833,0.00013699,2]
[327908297,1716601487945,-473.61833,0.00013699,2]
[327908298,1716601487968,-473.61833,0.00013699,2]
[327908299,1716601487989,-151.0,0.00013699,2]
[327908300,1716601488011,-151.074843,0.00013699,2]
[327908301,1716601488033,-151.0,0.00013699,2]
[327908302,1716601488055,-151.0,0.00013699,2]
[327908303,1716601488080,-151.0,0.00013699,2]
[327908304,1716601488103,-151.0,0.00013699,2]
[327908305,1716601488125,-151.0,0.00013699,2]
[327908306,1716601488148,-151.0,0.00013699,2]
[327908307,1716601488172,-216.9570412,0.00013699,2]
[327908308,1716601488196,-151.0,0.00013699,2]
[327908309,1716601488218,-151.0,0.00013699,2]
[327908310,1716601488240,-151.0,0.00013699,2]
[327908311,1716601488263,-151.0,0.00013699,2]
[327908312,1716601488285,-151.0,0.00013699,2]
[327908313,1716601488316,-151.642705,0.00013699,2]
[327908314,1716601488339,-151.0,0.00013699,2]
[327908315,1716601488362,-151.0,0.00013699,2]
[327908316,1716601488385,-151.0,0.00013699,2]
[327908317,1716601488407,-151.0,0.00013699,2]
[327908318,1716601488434,-164.365673,0.00013699,2]
[327908319,1716601488457,-164.365673,0.00013699,2]
[327908320,1716601488479,-164.365673,0.00013699,2]
[327908321,1716601488503,-1000.898743,0.00013699,2]
[327908322,1716601488528,-1000.898743,0.00013699,2]
[327908323,1716601488552,-1000.898743,0.00013699,2]
[327908324,1716601488576,-1000.898743,0.00013699,2]
[327908325,1716601488600,-1000.898743,0.00013699,2]
[327908326,1716601488623,-1000.898743,0.00013699,2]
[327908327,1716601488646,-1000.898743,0.00013699,2]
[327908328,1716601488673,-919.95624306,0.00013699,2]
[327908332,1716601537564,-215.87394328,6.36e-05,2]
[327908333,1716601537586,-551.16749439,6.36e-05,2]
[327908334,1716601537609,-395.68345474,6.36e-05,2]
[327908335,1716601537633,-1895.27931477,6.364e-05,2]
[327908336,1716601537655,-2599.89847911,6.364e-05,2]
[327908337,1716601537677,-2645.71444433,6.364e-05,2]
[327908338,1716601537698,-382.69489212,7.788e-05,2]
[327908339,1716601537720,-3961.52985277,7.797e-05,2]
[327908340,1716601537742,-3961.52985277,7.955e-05,2]
[327908341,1716601537766,-382.69489212,7.998e-05,2]
[327908342,1716601537788,-3961.52985277,8.342e-05,2]
[327908343,1716601537812,-382.69489212,8.375e-05,2]
[327908344,1716601537834,-3961.52985277,8.545e-05,2]
[327908345,1716601537856,-382.69489212,8.679e-05,2]
[327908346,1716601537878,-382.69489212,9.03e-05,2]
[327908347,1716601537900,-3961.52985277,9.032e-05,2]
[327908348,1716601537921,-3961.52985277,9.086e-05,2]
[327908349,1716601537943,-382.69489212,9.16e-05,2]
[327908350,1716601537964,-382.69489212,9.469e-05,2]
[327908351,1716601537991,-3961.52985277,9.578e-05,2]
[327908352,1716601538012,-3961.52985277,9.645e-05,2]
[327908353,1716601538035,-382.69489212,9.809e-05,2]
[327908354,1716601538058,-154.8915759,9.997e-05,2]
[327908355,1716601538080,-1899.42263675,9.998e-05,2]
[327908356,1716601538102,-294.00348524,9.998e-05,2]
[327908357,1716601538124,-489.75615855,9.999e-05,2]
[327908358,1716601538148,-642.12533195,9.999e-05,2]
[327908359,1716601538170,-3961.52985277,0.00010015,2]
[327908360,1716601538191,-382.69489212,0.00010126,2]
[327908361,1716601538213,-382.69489215,0.00010295,2]
[327908362,1716601538236,-3961.52985277,0.0001033,2]
[327908363,1716601538258,-3961.52985277,0.00010502,2]
[327908364,1716601538280,-3961.52985277,0.0001095,2]
[327908365,1716601538420,-474.23,0.00010959,2]
[327908366,1716601538448,-395.19,0.00010959,2]
[327908367,1716601538473,-329.32,0.00010959,2]
[327908368,1716601538496,-274.44,0.00010959,2]
[327908369,1716601538523,-228.7,0.00010959,2]
[327908370,1716601538546,-3961.52985277,0.00011162,2]
[327908371,1716601538569,-3961.52985277,0.00011503,2]
[327908372,1716601538592,-4477.14376489,0.000129,2]
[327908373,1716601538616,-4477.14376483,0.00013402,2]
[327908374,1716601538638,-9406.84773612,0.00013696,2]
[327908375,1716601538660,-15000.0,0.00013696,2]
[327908376,1716601538682,-158.85882649,0.00013697,2]
[327908377,1716601538704,-10518.35727372,0.00013697,2]
[327908378,1716601538726,-9567.99465674,0.00013697,2]
[327908379,1716601538751,-694.59592096,0.00013697,2]
[327908380,1716601538773,-2696.20850813,0.00013697,2]
[327908381,1716601538794,-1870.13098848,0.00013697,2]
[327908382,1716601538820,-7901.15071561,0.00013697,2]
[327908383,1716601538844,-233.49081624,0.00013697,2]
[327908384,1716601538867,-1152.36513841,0.00013697,2]
[327908385,1716601538889,-391.80020202,0.00013697,2]
[327908386,1716601538911,-2892.52937882,0.00013698,2]
[327908387,1716601538934,-55787.31912952,0.00013698,2]
[327908388,1716601621380,1456.69,0.00027,30]
[327908389,1716601634145,-551.16749439,9.999e-05,2]
[327908390,1716601634167,-190.58,0.00010959,2]
[327908391,1716601634187,-158.82,0.00010959,2]
[327908392,1716601634208,-1870.13098848,0.00012695,2]
[327908393,1716601634228,-2259.79231515,0.00012695,2]
[327908425,1716601833906,-922.77540019,0.00010757,2]
[327908427,1716601833917,-3006.61739,0.00010852,2]
[327908428,1716601833929,-500.0,0.00010852,2]
[327908431,1716601833940,-64601.41259407,0.00010852,2]
[327908433,1716601833949,-7075.50777401,0.00010853,2]
[327908435,1716601833961,-310.0,0.00010853,2]
[327908444,1716601839419,-916.83852641,9.999e-05,2]
[327908446,1716601839428,-6425.14388906,0.00010853,2]
[327908448,1716601839440,-1189.34833693,0.00010853,2]
[327908450,1716601839449,-1979.22122047,0.00010854,2]
[327908452,1716601839459,-9406.84773612,0.00010854,2]
[327908454,1716601839468,-1899.42263675,0.00010855,2]
[327908456,1716601839479,-2893.10503803,0.00010859,2]
[327908458,1716601839488,-189.76101519,0.00010859,2]
[327908460,1716601839497,-621.48740289,0.00010859,2]
[327908473,1716601839617,-542.45815325,0.00010859,2]
[327908475,1716601839627,-758.22,0.00010959,2]
[327908477,1716601839636,-155.36444874,0.00012685,2]
[327908478,1716601839645,-9567.99465674,0.00012686,2]
[327908480,1716601839655,-180.6415911,0.0001269,2]
[327908484,1716601839676,-455.5957989,0.0001269,2]
[327908486,1716601839685,-155.26555647,0.0001269,2]
[327908488,1716601839695,-554.33837864,0.00012694,2]
[327908490,1716601839704,-405.72590937,0.00012694,2]
[327908553,1716601843564,-1469.39995665,0.00012694,2]
[327908554,1716601843574,-21328.85433535,0.00012697,2]
[327908555,1716601843986,-2479.8072509,0.00012697,2]
[327908562,1716601848952,-814.0,0.00010959,2]
[327908563,1716601848963,-830.16573639,0.00012696,2]
[327908564,1716601849066,-32.47738346,0.00012696,2]
[327908567,1716602304299,11628.88,0.00029,91]
[327908569,1716602618655,178.52,0.00028,120]
[327908574,1716602843207,-636.23739,8.957e-05,2]
[327908580,1716602948166,-10518.35727372,8.949e-05,2]
[327908581,1716602948188,-11067.33093083,8.949e-05,2]
[327908582,1716602948211,-6786.33416422,8.95e-05,2]
[327908594,1716603032890,-11067.33093083,8.945e-05,2]
[327908595,1716603032899,-9567.99465674,8.946e-05,2]
[327908596,1716603032909,-7901.15071561,8.947e-05,2]
[327908597,1716603032918,-2599.89847911,8.948e-05,2]
[327908598,1716603032927,-59890.17224542,8.949e-05,2]
[327908639,1716603038895,-1480.74942289,8.949e-05,2]
[327908647,1716603042674,-5560.29142839,8.949e-05,2]
[327908649,1716603043333,-1176.81688737,8.949e-05,2]
[327908651,1716603043343,-2116.44274717,8.949e-05,2]
[327908652,1716603043353,-2091.43127022,8.95e-05,2]
[327908654,1716603043363,-10899.17630509,8.95e-05,2]
[327908656,1716603043374,-252.92464018,8.95e-05,2]
[327908671,1716603046911,-5008.66963075,8.95e-05,2]
[327908672,1716603046921,-5192.81461814,8.95e-05,2]
[327908673,1716603046931,-522.84603088,8.971e-05,2]
[327908674,1716603046940,-161.74451453,8.972e-05,2]
[327908675,1716603046950,-1940.45491269,8.972e-05,2]
[327908676,1716603046960,-550.9904196,8.974e-05,2]
[327908677,1716603046969,-923.71294967,8.974e-05,2]
[327908678,1716603046979,-24900.0,8.975e-05,2]
[327908679,1716603046988,-154.87947363,9.978e-05,2]
[327908680,1716603046997,-435.95514815,9.983e-05,2]
[327908681,1716603047008,-40765.12656108,9.985e-05,2]
[327908682,1716603047018,-2254.45744906,9.999e-05,2]
[327908683,1716603047027,-956.23573999,0.0001,2]
[327908684,1716603047040,-2106.26515726,0.0001,2]
[327908685,1716603083340,-2091.43127022,8.949e-05,2]
[327908686,1716603083363,-7566.14073709,8.949e-05,2]
[327908687,1716603083385,-2599.89847911,8.973e-05,2]
[327908688,1716603083408,-8430.52951358,9.998e-05,2]
[327908689,1716603170485,1451.43050368,0.0002,10]
[327908692,1716603628175,3000.0,0.00027,30]
[327908693,1716603656375,3000.0,0.00027,30]
[327908694,1716603663293,3000.0,0.00027,30]
[327908702,1716604174171,-551.16749439,8.114e-05,2]
[327908703,1716604174191,-395.68345474,8.115e-05,2]
[327908704,1716604174211,-154.8915759,8.115e-05,2]
[327908705,1716604174231,-231.02960299,8.116e-05,2]
[327908706,1716604174253,-2636.83525359,8.116e-05,2]
[327908707,1716604174274,-7901.15071561,8.116e-05,2]
[327908708,1716604174295,-9567.99465674,8.116e-05,2]
[327908709,1716604174315,-154.8915759,8.117e-05,2]
[327908710,1716604174335,-1979.22122047,8.117e-05,2]
[327908711,1716604174356,-1870.13098848,8.118e-05,2]
[327908712,1716604174376,-1152.36513841,8.118e-05,2]
[327908713,1716604174398,-2116.44274717,8.118e-05,2]
[327908714,1716604174418,-916.83852641,8.119e-05,2]
[327908715,1716604174437,-1340.12846768,8.119e-05,2]
[327908716,1716604174458,-1497.86344925,8.119e-05,2]
[327908717,1716604174478,-215.87394328,8.119e-05,2]
[327908718,1716604174505,-156.60501741,8.12e-05,2]
[327908719,1716604174526,-169.02082687,8.123e-05,2]
[327908720,1716604174548,-584.69717234,8.126e-05,2]
[327908721,1716604174570,-155.01726833,8.141e-05,2]
[327908722,1716604174590,-705.16992026,8.146e-05,2]
[327908723,1716604174610,-8292.63936038,8.172e-05,2]
[327908767,1716604233254,-913.24602737,8.112e-05,2]
[327908854,1716604410560,20688.0,7.397e-05,2]
[327908867,1716605325068,-2681.27163775,7.313e-05,2]
[327908868,1716605325090,-1899.42263675,7.314e-05,2]
[327908869,1716605325112,-68108.02998407,7.314e-05,2]
[327908870,1716605325133,-2116.44274717,7.315e-05,2]
[327908871,1716605325154,-2184.03299426,7.315e-05,2]
[327908878,1716605373115,-836.26318316,7.307e-05,2]
[327908879,1716605373139,-1152.36513841,7.308e-05,2]
[327908880,1716605373161,-9567.99465674,7.308e-05,2]
[327908881,1716605373182,-7901.15071561,7.309e-05,2]
[327908882,1716605373203,-2636.83525359,7.31e-05,2]
[327908883,1716605373225,-215.87394328,7.31e-05,2]
[327908884,1716605373247,-3065.00544058,7.311e-05,2]
[327908885,1716605373273,-551.16749439,7.312e-05,2]
[327908886,1716605373295,-231.02960299,7.312e-05,2]
[327908887,1716605373315,-10518.35727372,7.314e-05,2]
[327908888,1716605373338,-11067.33093083,7.314e-05,2]
[327908889,1716605373358,-155.10487286,7.348e-05,2]
[327908890,1716605373379,-916.83852641,7.379e-05,2]
[327908891,1716605373400,-154.8915759,7.381e-05,2]
[327908892,1716605373420,-156.60501741,7.385e-05,2]
[327908893,1716605373441,-1340.12846768,7.386e-05,2]
[327908894,1716605373461,-10325.01907283,7.386e-05,2]
[327908895,1716605373481,-990.30834878,7.395e-05,2]
[327908896,1716605373502,-2681.27163775,7.395e-05,2]
[327908897,1716605373524,-2116.44274717,7.395e-05,2]
[327908898,1716605373546,-51888.55538554,7.396e-05,2]
[327908915,1716605432454,-839.27085456,7.393e-05,2]
[327908916,1716605432466,-48932.13130435,7.393e-05,2]
[327908917,1716605432478,-1048.245,7.393e-05,2]
[327908918,1716605432491,-17227.14224703,7.393e-05,2]
[327908919,1716605432501,-51666.85850904,7.394e-05,2]
[327908920,1716605432510,-41997.82536246,7.394e-05,2]
[327908921,1716605432519,-2599.89847911,7.395e-05,2]
[327908922,1716605432528,-3065.00544058,7.395e-05,2]
[327908923,1716605432538,-2116.44274717,7.395e-05,2]
[327908924,1716605432547,-733.56314113,7.395e-05,2]
[327908925,1716605432557,-7901.15071561,7.395e-05,2]
[327908926,1716605432566,-551.52462641,7.395e-05,2]
[327908927,1716605432575,-2253.93315083,7.395e-05,2]
[327908944,1716605438231,-8123.18145067,7.395e-05,2]
[327908945,1716605438241,-382.1837694,7.395e-05,2]
[327908947,1716605438251,-1152.36513841,7.395e-05,2]
[327908949,1716605438260,-314.82771887,7.395e-05,2]
[327908951,1716605438270,-837.68909152,7.395e-05,2]
[327908953,1716605438280,-251.7553016,7.395e-05,2]
[327908955,1716605438289,-230.68622516,7.395e-05,2]
[327908957,1716605438299,-1595.5182083,7.395e-05,2]
[327908959,1716605438313,-267.45300945,7.395e-05,2]
[327909005,1716605441948,-3908.42677184,7.395e-05,2]
[327909006,1716605441961,-1345.14829684,7.395e-05,2]
[327909041,1716605446247,-315.93758226,7.394e-05,2]
[327909050,1716605446502,-2749.06785832,7.394e-05,2]
[327909051,1716605446514,-3950.7846444,7.395e-05,2]
[327909052,1716605446524,-2636.83525359,7.395e-05,2]
[327909053,1716605446535,-2602.80002685,7.395e-05,2]
[327909054,1716605446544,-2091.43127022,7.396e-05,2]
[327909055,1716605446555,-234.48390116,7.396e-05,2]
[327909056,1716605446566,-24900.0,7.397e-05,2]
[327909057,1716605446575,-306.49009474,8.089e-05,2]
[327909058,1716605446585,-155.11627612,8.11e-05,2]
[327909059,1716605446594,-1610.21905774,8.11e-05,2]
[327909060,1716605446603,-232.20003553,8.113e-05,2]
[327909061,1716605446613,-534.41251826,8.113e-05,2]
[327909062,1716605446622,-1502.5089444,8.113e-05,2]
[327909063,1716605446633,-1984.5429423,8.113e-05,2]
[327909064,1716605446642,-1052.40982345,8.113e-05,2]
[327909065,1716605446651,-155.06193185,8.113e-05,2]
[327909066,1716605446661,-720.27106202,8.897e-05,2]
[327909067,1716605446670,-155.17961982,8.911e-05,2]
[327909068,1716605446680,-278.24594851,8.922e-05,2]
[327909069,1716605446689,-155.17279527,8.939e-05,2]
[327909070,1716605446699,-286.22071336,8.994e-05,2]
[327909071,1716605446708,-1610.2190577,9.456e-05,2]
[327909072,1716605446719,-457.35949496,9.996e-05,2]
[327909073,1716605446729,-531.02980444,9.996e-05,2]
[327909074,1716605446739,-154.98450155,9.997e-05,2]
[327909075,1716605446749,-687.5019027,9.997e-05,2]
[327909076,1716605446760,-154.8915759,9.997e-05,2]
[327909077,1716605446770,-155.19666134,9.997e-05,2]
[327909078,1716605446780,-772.71271102,9.997e-05,2]
[327909079,1716605446790,-657.24867269,9.997e-05,2]
[327909080,1716605446799,-3314.06717253,9.998e-05,2]
[327909081,1716605446808,-6344.34683887,0.0001,2]
[327909082,1716605446818,-13856.3044016,0.0001,2]
[327909085,1716605466845,1460.37935967,0.0002,10]
[327909099,1716606454190,-316.61744386,7.329e-05,2]
[327909100,1716606454223,-319.61994614,7.33e-05,2]
[327909115,1716606629634,3000.0,0.00027,30]
[327909130,1716606632651,-576.58072311,7.314e-05,2]
[327909131,1716606632663,-575.7844153,7.314e-05,2]
[327909132,1716606632672,-250.87279847,7.314e-05,2]
[327909133,1716606632683,-1089.25566921,7.314e-05,2]
[327909135,1716606632693,-2116.44274717,7.314e-05,2]
[327909137,1716606632702,-551.16749439,7.315e-05,2]
[327909139,1716606632711,-67313.83205739,7.316e-05,2]
[327909141,1716606632723,-516.14064964,7.316e-05,2]
[327909193,1716606638580,-11067.33093083,7.313e-05,2]
[327909194,1716606638589,-278.05727704,7.316e-05,2]
[327909195,1716606638599,-733.56314113,7.316e-05,2]
[327909196,1716606638608,-3065.00544058,7.317e-05,2]
[327909197,1716606638618,-7901.15071561,7.317e-05,2]
[327909198,1716606638628,-2619.90896153,7.317e-05,2]
[327909199,1716606638637,-1870.13098848,7.318e-05,2]
[327909200,1716606638647,-836.87491357,7.326e-05,2]
[327909201,1716606638659,-490.00439163,7.326e-05,2]
[327909202,1716606638668,-1780.55762664,7.33e-05,2]
[327909203,1716606638679,-310.87364358,7.33e-05,2]
[327909204,1716606638700,-10518.35727372,7.333e-05,2]
[327909205,1716606638710,-341.56538835,7.337e-05,2]
[327909206,1716606638720,-1664.13306529,7.392e-05,2]
[327909207,1716606638730,-189.25304932,7.396e-05,2]
[327909208,1716606638740,-24900.0,7.397e-05,2]
[327909209,1716606638749,-1326.87930517,8.867e-05,2]
[327909210,1716606638759,-574.91415496,9.999e-05,2]
[327909211,1716606638769,-1143.6955984,0.0001,2]
[327909212,1716606638779,-9406.84773612,0.0001,2]